[Event "WYCC 2018 G14"]
[Site "Halkidiki"]
[Date "2018.10.21"]
[Round "2"]
[White "Vuong, Quynh Anh"]
[Black "Mironenko, Galina"]
[Result "1/2-1/2"]
[ECO "A05"]
[WhiteElo "1747"]
[BlackElo "2053"]
[Annotator "NA"]
[PlyCount "194"]
[EventDate "2018.10.20"]
[EventType "swiss"]
[EventCountry "GRE"]
[SourceTitle "playchess.com"]
[Source "ChessBase"]
[SourceQuality "1"]
[TimeControl "40/5400+30:1800+30"]

1. Nf3 {[%emt 0:00:00]} Nf6 {[%emt 0:00:00]} 2. g3 {[%emt 0:00:00]} e6 {[%emt 0:00:00]} 3. Bg2 {[%emt 0:00:00]} Be7 {[%emt 0:00:09]} 4. O-O {[%emt 0:00:04]} O-O {[%emt 0:00:07]} 5. c4 {[%emt 0:00:08]} d5 {[%emt 0:00:18]} 6. d4 {[%emt 0:00:08]} b6 {[%emt 0:00:37]} 7. cxd5 {[%emt 0:00:08]} exd5 {[%emt 0:00:06]} 8. Nc3 {[%emt 0:00:08]} Bb7 {[%emt 0:00:14]} 9. Ne5 {[%emt 0:00:08]} Na6 {[%emt 0:00:10]} 10. Bf4 {[%emt 0:00:11]} Qc8 {[%emt 0:01:46] E18: Queen's Indian: Old Main Line (4 g3 Bb7 5 Bg2 Be7 6 0-0 0-0 7 Nc3)} (10... c5 11. Rc1 Ne4 12. Nxe4 dxe4 13. dxc5 Nxc5 14. Qc2 Rc8 15. Rcd1 Qe8 16. Bh3 Ne6 17. Qb3 Nc5 18. Qa3 Na4 19. Qe3 f5 20. Rd4 Kh8 21. Nd7 Rf7 22. Rxa4 Qxd7 23. Rxa7 {1-0 (40) Cheparinov,I (2682)-Tiviakov,S (2611) Antofagasta 2016}) 11. Qb3 {[%emt 0:05:37]} Qe6 {[%emt 0:02:56]} 12. Rad1 {[%emt 0:13:11]} Rfd8 {[%emt 0:03:18]} 13. Rfe1 {[%emt 0:10:08]} c5 {[%emt 0:07:04]} 14. Nb5 $146 {[%emt 0:10:31]} ({Predecessor:} 14. e4 dxe4 15. Qxe6 fxe6 16. Nxe4 Nxe4 17. Bxe4 Bxe4 18. Rxe4 Rac8 19. Nf3 Bf6 20. Be5 {½-½ (21) Daverkausen,B (2285)-Zsinka,L (2355) Oberwart 1992}) 14... Bf8 {[%emt 0:14:29]} 15. Qc2 {[%emt 0:15:11]} g6 {[%emt 0:09:37]} 16. dxc5 {[%emt 0:02:58]} bxc5 {[%emt 0:03:32]} 17. Nd3 {[%emt 0:02:03]} Qb6 {[%emt 0:06:55]} 18. Nc3 {[%emt 0:01:36]} Rac8 {[%emt 0:04:15]} 19. Bh3 {[%emt 0:03:12]} Ra8 {[%emt 0:05:59]} 20. Na4 {[%emt 0:00:28]} Qc6 {[%emt 0:02:36]} 21. Ne5 {[%emt 0:00:30]} Qe8 {[%emt 0:01:33]} 22. b3 {[%emt 0:13:53]} Ne4 {[%emt 0:09:00]} 23. Bg2 {[%emt 0:01:48]} Bg7 {[%emt 0:01:38]} 24. Bxe4 {[%emt 0:00:47]} Bxe5 {[%emt 0:05:20]} 25. Bf3 {[%emt 0:01:59]} Bxf4 {[%emt 0:02:07]} 26. gxf4 {[%emt 0:00:03]} Rac8 {[%emt 0:01:09]} 27. Nc3 {[%emt 0:03:03]} Qe6 {[%emt 0:02:07]} 28. Qd2 {[%emt 0:02:20]} Nc7 {[%emt 0:01:50]} 29. e3 {[%emt 0:02:28]} Qf6 {[%emt 0:02:33]} 30. Bg2 {[%emt 0:02:27]} Ba8 {[%emt 0:01:02]} 31. Qc2 {[%emt 0:00:42]} Qe6 {[%emt 0:02:29]} 32. Na4 {[%emt 0:00:23]} Na6 {[%emt 0:00:41]} 33. Rd2 {[%emt 0:00:47]} d4 {[%emt 0:03:45]} 34. Bxa8 {[%emt 0:00:48]} Rxa8 {[%emt 0:00:05]} 35. Qd1 {[%emt 0:00:28]} Qf6 {[%emt 0:01:53]} 36. Qe2 {[%emt 0:00:49]} Re8 {[%emt 0:01:30]} 37. Rc1 {[%emt 0:01:30]} Qe6 {[%emt 0:01:01]} 38. Nxc5 {[%emt 0:00:25]} Nxc5 {[%emt 0:00:44]} 39. Rxc5 {[%emt 0:00:05]} dxe3 {[%emt 0:00:15]} 40. fxe3 {[%emt 0:00:00]} Qxe3+ {[%emt 0:00:00]} 41. Qxe3 {[%emt 0:01:23]} Rxe3 {[%emt 0:00:17]} 42. Rc7 {[%emt 0:03:06]} Re4 {[%emt 0:02:23]} 43. Rf2 {[%emt 0:01:11]} a5 {[%emt 0:02:22]} 44. Rc4 {[%emt 0:01:38]} Re1+ {[%emt 0:02:39]} 45. Kg2 {[%emt 0:00:11]} Kg7 {[%emt 0:00:44]} 46. Kf3 {[%emt 0:00:10]} Rae8 {[%emt 0:01:27]} 47. Ra4 {[%emt 0:00:06]} R1e3+ {[%emt 0:00:52]} 48. Kg2 {[%emt 0:00:13]} Ra8 {[%emt 0:00:35]} 49. Rc2 {[%emt 0:00:26]} Re6 {[%emt 0:00:41]} 50. Rc5 {[%emt 0:00:26]} Rea6 {[%emt 0:00:06]} 51. Kf3 {[%emt 0:00:22]} h6 {[%emt 0:02:20]} 52. Rd4 {[%emt 0:00:26]} Rb6 {[%emt 0:01:24]} 53. Ra4 {[%emt 0:00:30]} Rba6 {[%emt 0:00:19]} 54. Rd5 {[%emt 0:00:06]} Kf6 {[%emt 0:01:35]} 55. h4 {[%emt 0:00:35]} Ke6 {[%emt 0:01:46]} 56. Re5+ {[%emt 0:01:26]} Kf6 {[%emt 0:00:33]} 57. Ke4 {[%emt 0:01:40]} R6a7 {[%emt 0:02:11]} 58. Rd5 {[%emt 0:00:22]} Ra6 {[%emt 0:00:29]} 59. Kd4 {[%emt 0:00:06]} Ke6 {[%emt 0:00:47]} 60. Re5+ {[%emt 0:00:15]} Kf6 {[%emt 0:00:52]} 61. Kc4 {[%emt 0:00:33]} R6a7 {[%emt 0:00:58]} 62. Kc3 {[%emt 0:00:34]} Ra6 {[%emt 0:00:36]} 63. Rc4 {[%emt 0:00:33]} Kg7 {[%emt 0:01:17]} 64. Rcc5 {[%emt 0:00:15]} Kf6 {[%emt 0:01:51]} 65. Kc4 {[%emt 0:00:28]} Kg7 {[%emt 0:00:23]} 66. Red5 {[%emt 0:02:48]} Rf6 {[%emt 0:01:32]} 67. Rd4 {[%emt 0:00:29]} Rb6 {[%emt 0:00:54]} 68. Kd3 {[%emt 0:00:51]} Kf6 {[%emt 0:01:03]} 69. Ra4 {[%emt 0:00:43]} Rba6 {[%emt 0:00:28]} 70. Ke4 {[%emt 0:00:49]} Re8+ {[%emt 0:00:56]} 71. Kf3 {[%emt 0:00:24]} Rea8 {[%emt 0:00:13]} 72. Rac4 {[%emt 0:00:11]} Kg7 {[%emt 0:01:30]} 73. Rc6 {[%emt 0:00:43]} R6a7 {[%emt 0:02:12]} 74. Rc8 {[%emt 0:00:53]} Rxc8 {[%emt 0:00:42]} 75. Rxc8 {[%emt 0:00:01]} Kf6 {[%emt 0:00:21]} 76. Rc5 {[%emt 0:00:11]} Ke6 {[%emt 0:00:23]} 77. Ke4 {[%emt 0:00:05]} Kd6 {[%emt 0:01:09]} 78. Kd4 {[%emt 0:00:14]} f6 {[%emt 0:01:17]} 79. Rd5+ {[%emt 0:00:37]} Ke6 {[%emt 0:00:39]} 80. Rb5 {[%emt 0:00:05]} Rd7+ {[%emt 0:01:18]} 81. Ke3 {[%emt 0:00:16]} Ra7 {[%emt 0:00:23]} 82. f5+ {[%emt 0:03:29]} Kf7 $2 {[%emt 0:03:08]} (82... gxf5 $11 {and Black is okay.} 83. Kf4 Ra6) 83. fxg6+ {[%emt 0:00:20]} Kxg6 {[%emt 0:00:09]} 84. Kf4 {[%emt 0:00:08]} h5 {[%emt 0:01:09]} 85. Rc5 {[%emt 0:03:10]} Ra6 {[%emt 0:01:05]} 86. Ke4 {[%emt 0:00:20]} Rb6 {[%emt 0:00:53]} 87. Kd3 {[%emt 0:00:29]} Rb4 {[%emt 0:00:53]} 88. Rxa5 {[%emt 0:01:03]} Rxh4 {[%emt 0:00:07]} 89. Ra8 {[%emt 0:01:15]} Rh1 {[%emt 0:00:30]} 90. Ke3 {[%emt 0:00:39]} Kg5 {[%emt 0:00:36]} 91. Kf3 {[%emt 0:00:12]} h4 {[%emt 0:00:28]} 92. Rg8+ {[%emt 0:01:21]} Kf5 {[%emt 0:00:11]} 93. Rh8 {[%emt 0:00:19]} Kg5 {[%emt 0:00:55]} 94. Kg2 {[%emt 0:00:59]} Rb1 {[%emt 0:00:22]} 95. Rg8+ {[%emt 0:00:29]} Kf4 {[%emt 0:00:30]} 96. Kh3 {[%emt 0:00:16]} Rh1+ $18 {[%emt 0:00:18]} (96... Kf3 $15 {keeps the upper hand.} 97. Rg2 f5) 97. Kg2 {[%emt 0:00:12]} Rb1 {[%emt 0:00:06]} 1/2-1/2

[Event "WYCC 2018 G14"]
[Site "Halkidiki"]
[Date "2018.10.21"]
[Round "2"]
[White "Mocanu, Paula"]
[Black "Caglar, Sila"]
[Result "0-1"]
[ECO "B54"]
[WhiteElo "1680"]
[BlackElo "2184"]
[Annotator "NA"]
[PlyCount "64"]
[EventDate "2018.10.20"]
[EventType "swiss"]
[EventCountry "GRE"]
[SourceTitle "playchess.com"]
[Source "ChessBase"]
[SourceQuality "1"]
[TimeControl "40/5400+30:1800+30"]

1. e4 {[%emt 0:00:00]} c5 {[%emt 0:00:00]} 2. Nf3 {[%emt 0:00:00]} d6 {[%emt 0:00:00]} 3. d4 {[%emt 0:00:00]} cxd4 {[%emt 0:00:00]} 4. Nxd4 {[%emt 0:00:00]} Nf6 {[%emt 0:00:00]} 5. f3 {[%emt 0:00:00]} e5 {[%emt 0:00:00] LiveBook: 1103 Games} 6. Nb3 {[%emt 0:01:10]} a5 {[%emt 0:00:15]} 7. a4 {[%emt 0:00:44]} d5 {[%emt 0:05:40]} 8. Bg5 {[%emt 0:16:55]} Be6 {[%emt 0:07:20]} 9. Bb5+ {[%emt 0:18:47]} Nc6 {[%emt 0:01:48]} 10. Qe2 {[%emt 0:05:03]} Bb4+ {[%emt 0:09:00]} 11. c3 $11 {[%emt 0:07:12]} Be7 {[%emt 0:04:53]} 12. exd5 {[%emt 0:06:01]} Qxd5 {[%emt 0:03:04]} 13. c4 {[%emt 0:00:35]} Qd6 {[%emt 0:00:43]} 14. N1d2 {[%emt 0:08:14]} O-O {[%emt 0:01:36]} 15. O-O {[%emt 0:03:28]} Rfd8 {[%emt 0:05:56]} 16. Ne4 {[%emt 0:07:35]} Nxe4 {[%emt 0:08:06]} 17. Bxe7 {[%emt 0:00:13]} Qxe7 {[%emt 0:02:09]} 18. Qxe4 {[%emt 0:00:49]} Qb4 {[%emt 0:01:44]} 19. Ra3 {[%emt 0:03:26]} g6 {[%emt 0:05:03]} 20. Bxc6 {[%emt 0:09:21]} bxc6 {[%emt 0:00:31]} 21. Rc1 {[%emt 0:00:13]} Qb6+ {[%emt 0:04:23]} 22. Kh1 {[%emt 0:06:24]} f6 {[%emt 0:04:14]} 23. c5 {[%emt 0:04:44]} Qb4 {[%emt 0:00:57]} 24. Qxc6 {[%emt 0:00:33]} Bxb3 {[%emt 0:00:26]} 25. Qxf6 {[%emt 0:00:23]} Qxc5 {[%emt 0:00:41]} 26. Rg1 {[%emt 0:00:23]} Bf7 {[%emt 0:00:29]} 27. Rc3 {[%emt 0:00:09]} Qd6 {[%emt 0:00:38]} 28. Qg5 {[%emt 0:00:23]} Rac8 {[%emt 0:00:14]} 29. Re3 {[%emt 0:00:52]} Rc5 {[%emt 0:01:27]} 30. Qh6 {[%emt 0:00:30]} Qd2 {[%emt 0:00:28]} 31. Qg5 {[%emt 0:00:49]} Rd3 {[%emt 0:00:23]} 32. Qe7 {[%emt 0:00:28]} Qxe3 {[%emt 0:00:13]} 0-1

[Event "WYCC 2018 G14"]
[Site "Halkidiki"]
[Date "2018.10.21"]
[Round "2"]
[White "Figueroa Bernal, Julia Dennis"]
[Black "Stepanyan, Eva"]
[Result "1-0"]
[ECO "B12"]
[WhiteElo "1650"]
[BlackElo "1981"]
[Annotator "NA"]
[PlyCount "141"]
[EventDate "2018.10.20"]
[EventType "swiss"]
[EventCountry "GRE"]
[SourceTitle "playchess.com"]
[Source "ChessBase"]
[SourceQuality "1"]
[TimeControl "40/5400+30:1800+30"]

1. e4 {[%emt 0:00:00]} c6 {[%emt 0:00:00]} 2. d4 {[%emt 0:00:00]} d5 {[%emt 0:00:00]} 3. e5 {[%emt 0:00:00]} Bf5 {[%emt 0:00:14]} 4. Nf3 {[%emt 0:00:00]} e6 {[%emt 0:01:30]} 5. Be2 {[%emt 0:00:08]} Nd7 {[%emt 0:02:22]} 6. O-O {[%emt 0:01:07]} h6 {[%emt 0:02:06]} 7. Nbd2 {[%emt 0:00:32]} Ne7 {[%emt 0:02:17] B12: Caro-Kann: Advance Variation} 8. Nb3 {[%emt 0:01:18]} g5 {[%emt 0:06:59]} (8... Bg6 9. a4 a5 10. c3 Nf5 11. Ne1 Be7 12. Nd3 O-O 13. f4 b6 14. g4 Nh4 {1-0 (41) Rodshtein,M (2678)-Riazantsev,A (2662) Sochi 2018}) 9. Bd2 {[%emt 0:01:12]} Qc7 {[%emt 0:05:17]} 10. Bb4 {[%emt 0:06:40]} Ng6 {[%emt 0:03:42]} 11. Bxf8 {[%emt 0:02:55]} Kxf8 {[%emt 0:02:55]} 12. Ne1 $146 {[%emt 0:07:52]} ({Predecessor:} 12. Bd3 Bxd3 13. Qxd3 Kg7 14. c4 dxc4 15. Qxc4 {1-0 (76) Mkrtchian,L (2402)-Kadimova,I (2287) Heraklio 2007}) 12... Nf4 {[%emt 0:06:34]} 13. Bg4 {[%emt 0:03:46]} Bxg4 {[%emt 0:02:38]} 14. Qxg4 {[%emt 0:02:34]} f5 {[%emt 0:15:28]} 15. Qd1 {[%emt 0:05:06]} Ke7 {[%emt 0:02:49]} 16. Nd3 {[%emt 0:04:17]} Ng6 {[%emt 0:05:01]} 17. Qe1 {[%emt 0:20:33]} Rae8 {[%emt 0:06:16]} 18. a4 {[%emt 0:03:25]} f4 {[%emt 0:03:31]} 19. a5 {[%emt 0:04:23]} Kf7 {[%emt 0:02:16]} 20. Qc3 {[%emt 0:05:03]} Kg7 {[%emt 0:02:12]} 21. Nbc5 {[%emt 0:02:11]} Nxc5 {[%emt 0:00:39]} 22. dxc5 {[%emt 0:00:59]} a6 {[%emt 0:00:45]} 23. Rfe1 {[%emt 0:01:11]} Ref8 {[%emt 0:00:51]} 24. Qb4 {[%emt 0:00:39]} Rf5 {[%emt 0:02:41]} 25. Qb6 {[%emt 0:00:25]} Qd7 {[%emt 0:00:21]} 26. Ra3 {[%emt 0:01:01]} h5 {[%emt 0:02:33]} 27. Rb3 {[%emt 0:00:53]} Rf7 {[%emt 0:00:08]} 28. Ra1 {[%emt 0:02:03]} Rc8 {[%emt 0:02:56]} 29. Ra4 {[%emt 0:02:58]} Rc7 {[%emt 0:00:35]} 30. Qb4 {[%emt 0:02:43]} Rf5 {[%emt 0:01:46]} 31. Qd4 {[%emt 0:00:15]} Kh7 {[%emt 0:00:23]} 32. Rab4 {[%emt 0:00:35]} Qg7 {[%emt 0:00:28]} 33. Qc3 {[%emt 0:00:39]} Rd7 {[%emt 0:01:00]} 34. Kf1 {[%emt 0:01:45]} Kg8 {[%emt 0:03:05]} 35. Rb6 {[%emt 0:01:10]} d4 {[%emt 0:03:44]} 36. Qc4 {[%emt 0:01:08]} Qe7 {[%emt 0:01:14]} 37. Qb4 {[%emt 0:02:09]} Rf7 {[%emt 0:00:53]} 38. Qc4 {[%emt 0:00:55]} Rh7 {[%emt 0:01:25]} 39. Qb4 {[%emt 0:03:49]} g4 {[%emt 0:01:23]} 40. Qe1 {[%emt 0:00:00]} Rf7 {[%emt 0:00:00]} 41. Qe4 {[%emt 0:05:40]} Kg7 {[%emt 0:07:15]} 42. R3b4 {[%emt 0:04:29]} Qd8 {[%emt 0:01:09]} 43. Rb3 {[%emt 0:00:55]} g3 {[%emt 0:02:53]} 44. h3 {[%emt 0:01:07]} (44. fxg3 {was necessary.} fxg3+ 45. Kg1) 44... gxf2 {[%emt 0:07:17]} 45. Nxf2 {[%emt 0:03:46]} Nh4 {[%emt 0:03:44]} 46. Qe2 {[%emt 0:08:32]} (46. g3 $142 fxg3 47. Rxg3+ Kh8 48. Ke1) 46... Qg5 {[%emt 0:07:13]} 47. Ne4 {[%emt 0:00:44]} Qxe5 {[%emt 0:09:00]} 48. Nd6 {[%emt 0:00:08]} Qxe2+ {[%emt 0:01:26]} 49. Kxe2 {[%emt 0:00:06]} d3+ {[%emt 0:01:47]} 50. Rxd3 {[%emt 0:01:56]} Rfe7 {[%emt 0:00:26]} 51. Ne8+ {[%emt 0:00:54]} Kf8 {[%emt 0:00:38]} 52. Rxd7 {[%emt 0:00:14]} Rxd7 {[%emt 0:00:04]} 53. Nd6 {[%emt 0:00:07]} Nxg2 {[%emt 0:00:56]} (53... Rg7 $1 $11) 54. Nxb7 {[%emt 0:00:30]} Nh4 $2 {[%emt 0:00:48]} (54... Ne3) 55. Nd6 {[%emt 0:00:10]} f3+ {[%emt 0:00:39]} 56. Kf2 {[%emt 0:00:24]} Nf5 {[%emt 0:00:59]} 57. Rxc6 {[%emt 0:00:34]} Nxd6 {[%emt 0:00:41]} 58. Rxd6 {[%emt 0:00:14]} Rc7 {[%emt 0:00:26]} 59. b4 {[%emt 0:00:34]} Rf7 {[%emt 0:00:25]} 60. Rxe6 {[%emt 0:00:34]} Rf4 {[%emt 0:00:20]} 61. c3 {[%emt 0:01:32]} Rc4 {[%emt 0:00:28]} 62. Rxa6 {[%emt 0:00:25]} Rxc3 {[%emt 0:00:04]} 63. Rb6 {[%emt 0:00:45]} Ke7 {[%emt 0:00:16]} 64. a6 {[%emt 0:00:32]} Ra3 {[%emt 0:00:21]} 65. b5 {[%emt 0:00:20]} Kd7 {[%emt 0:00:14]} 66. Rb7+ {[%emt 0:00:20]} Ke6 $18 {[%emt 0:00:51]} 67. c6 {[%emt 0:00:19]} Kd6 {[%emt 0:00:58]} 68. a7 {[%emt 0:00:31]} h4 {[%emt 0:00:45]} 69. c7 {[%emt 0:00:27]} Kd7 {[%emt 0:00:09]} 70. c8=Q+ {[%emt 0:00:29]} Kxc8 {[%emt 0:00:15]} 71. Rb8+ {[%emt 0:00:04]} 1-0

[Event "WYCC 2018 G14"]
[Site "Halkidiki"]
[Date "2018.10.21"]
[Round "2"]
[White "Yellamraju, Ambica"]
[Black "Rodriguez Redondo, Adhara"]
[Result "0-1"]
[ECO "E09"]
[WhiteElo "1647"]
[BlackElo "1911"]
[Annotator "NA"]
[PlyCount "190"]
[EventDate "2018.10.20"]
[EventType "swiss"]
[EventCountry "GRE"]
[SourceTitle "playchess.com"]
[Source "ChessBase"]
[SourceQuality "1"]
[TimeControl "40/5400+30:1800+30"]

1. d4 {[%emt 0:00:00]} d5 {[%emt 0:00:00]} 2. c4 {[%emt 0:00:00]} e6 {[%emt 0:00:00]} 3. Nf3 {[%emt 0:00:00]} Nf6 {[%emt 0:00:00]} 4. g3 {[%emt 0:00:00]} Be7 {[%emt 0:01:21]} 5. Bg2 {[%emt 0:00:00]} Nbd7 {[%emt 0:00:41]} 6. Qc2 {[%emt 0:00:30]} O-O {[%emt 0:00:54]} 7. O-O {[%emt 0:00:09]} c6 {[%emt 0:01:38]} 8. Nbd2 {[%emt 0:00:25]} b6 {[%emt 0:02:40]} 9. e4 {[%emt 0:00:16]} Bb7 {[%emt 0:03:01]} 10. e5 {[%emt 0:00:14]} Ne8 {[%emt 0:01:17]} 11. cxd5 {[%emt 0:00:15]} cxd5 {[%emt 0:01:17]} 12. Re1 {[%emt 0:00:28]} Rc8 {[%emt 0:02:25]} 13. Qa4 {[%emt 0:01:03] E09: Closed Catalan: Main Line: 7 Qc2 c6 8 Nbd2} (13. Qd1 Qc7 14. Nb1 b5 15. Bf1 b4 16. Bd3 h6 17. Bf4 Qb6 18. Nbd2 Ba6 19. Bc2 f5 20. exf6 Rxf6 {1-0 (32) Gelfand,B (2729)-Stupak,K (2573) Tbilisi 2017}) 13... Bc6 {[%emt 0:03:29]} 14. Qb3 {[%emt 0:03:04]} a5 {[%emt 0:12:18]} 15. Bf1 {[%emt 0:04:02]} a4 {[%emt 0:08:01]} 16. Qd1 {[%emt 0:03:25]} Nb8 $146 {[%emt 0:10:47]} ({Predecessor:} 16... b5 17. Bd3 b4 18. Nf1 Nb6 19. b3 h6 20. Ne3 Ra8 {1-0 (54) Whaley,M (2328)-Kiss,A (2472) ICCF email 2012}) 17. Bd3 {[%emt 0:03:43]} Qd7 {[%emt 0:07:40]} 18. Nf1 {[%emt 0:05:48]} Bb5 {[%emt 0:04:35]} 19. Bb1 {[%emt 0:02:26]} Nc6 {[%emt 0:05:48]} 20. Bg5 {[%emt 0:08:17]} g6 {[%emt 0:07:24]} 21. Bxe7 {[%emt 0:09:45]} Qxe7 {[%emt 0:01:31]} 22. Qd2 {[%emt 0:01:08]} Kg7 {[%emt 0:01:59]} 23. Qf4 {[%emt 0:11:17]} Bxf1 {[%emt 0:08:18]} 24. Kxf1 {[%emt 0:03:58]} Nc7 {[%emt 0:03:09]} 25. a3 {[%emt 0:07:11]} Na5 {[%emt 0:01:03]} 26. Bd3 {[%emt 0:01:22]} b5 {[%emt 0:03:50]} 27. h4 {[%emt 0:04:53]} h5 {[%emt 0:00:45]} 28. Kg2 {[%emt 0:01:24]} Nc4 {[%emt 0:01:02]} 29. Re2 {[%emt 0:01:25]} Na6 {[%emt 0:02:43]} 30. Ng5 {[%emt 0:16:30]} Rc7 {[%emt 0:04:33]} 31. g4 {[%emt 0:02:20]} Rh8 {[%emt 0:00:41]} 32. Bxc4 {[%emt 0:02:00]} bxc4 {[%emt 0:00:18]} 33. Re3 {[%emt 0:01:04]} Rb7 {[%emt 0:00:46]} 34. Rf3 {[%emt 0:01:46]} Nb8 {[%emt 0:00:30]} 35. Qg3 {[%emt 0:01:56]} Qe8 {[%emt 0:00:15]} 36. Qf4 {[%emt 0:01:41]} Qe7 {[%emt 0:00:04]} 37. Rg1 {[%emt 0:01:17]} Nc6 {[%emt 0:00:31]} 38. Kh3 {[%emt 0:02:13]} Rb3 {[%emt 0:01:06]} 39. Rgg3 {[%emt 0:00:42]} Rxf3 {[%emt 0:00:29]} 40. Rxf3 {[%emt 0:00:00]} Nd8 {[%emt 0:00:00]} 41. Qg3 {[%emt 0:04:12]} hxg4+ {[%emt 0:07:32]} 42. Qxg4 {[%emt 0:00:34]} Rh6 {[%emt 0:03:31]} 43. Kg2 {[%emt 0:02:21]} Qe8 {[%emt 0:04:48]} 44. Nh3 {[%emt 0:04:26]} Qe7 {[%emt 0:03:02]} 45. Rf6 {[%emt 0:02:13]} Qe8 {[%emt 0:03:37] [#]} 46. Nf4 $1 {[%emt 0:01:43]} Nc6 {[%emt 0:05:06]} 47. Ne2 {[%emt 0:00:40]} Ne7 {[%emt 0:02:56]} 48. Ng3 $1 {[%emt 0:01:45]} Ng8 {[%emt 0:01:22]} 49. Rf4 {[%emt 0:01:24]} Qe7 {[%emt 0:02:12]} 50. Kf1 $2 {[%emt 0:00:54]} (50. h5 $11) 50... Kh7 {[%emt 0:01:31]} (50... Rh8 $17 51. Kg2 Nh6) 51. Qf3 {[%emt 0:01:21]} Kg7 {[%emt 0:00:10]} 52. h5 {[%emt 0:00:52]} Qb7 {[%emt 0:00:48]} 53. Qe2 {[%emt 0:07:29]} Qb3 {[%emt 0:00:27]} 54. Rf3 {[%emt 0:02:14]} Qb7 {[%emt 0:00:34]} ({Black should play} 54... Qa2 $17 55. Kg2 Qb1) 55. hxg6 {[%emt 0:00:58]} fxg6 {[%emt 0:00:17]} 56. Qc2 {[%emt 0:00:47]} Qb5 {[%emt 0:00:37]} 57. Qc3 {[%emt 0:01:08]} Ne7 {[%emt 0:00:38]} 58. Rf6 {[%emt 0:00:45]} g5 {[%emt 0:00:30]} 59. Rxh6 {[%emt 0:02:01]} Kxh6 {[%emt 0:00:05]} 60. Kg2 {[%emt 0:00:33]} Ng6 {[%emt 0:00:36]} 61. Ne2 {[%emt 0:01:07]} Nh4+ {[%emt 0:00:41]} 62. Kh2 {[%emt 0:00:36]} Qe8 {[%emt 0:00:36]} 63. Qh3 {[%emt 0:00:46]} Qf7 {[%emt 0:00:24]} 64. f4 {[%emt 0:00:41]} Kg6 {[%emt 0:00:38]} 65. Qg4 {[%emt 0:01:35]} Qf5 {[%emt 0:00:24]} 66. Qxg5+ {[%emt 0:00:17]} Qxg5 {[%emt 0:00:07]} 67. fxg5 {[%emt 0:00:02]} Kxg5 {[%emt 0:00:52]} 68. Kg3 {[%emt 0:00:20]} Nf5+ {[%emt 0:00:36]} 69. Kf3 {[%emt 0:00:28]} Nh4+ {[%emt 0:00:30]} 70. Ke3 {[%emt 0:00:26]} Ng2+ {[%emt 0:00:28]} 71. Kd2 {[%emt 0:00:33]} Kf5 {[%emt 0:00:33]} 72. Nc3 {[%emt 0:00:40]} Nf4 {[%emt 0:00:26]} 73. Nb5 {[%emt 0:01:18]} Ke4 {[%emt 0:00:23]} 74. Kc3 {[%emt 0:00:26]} Ne2+ {[%emt 0:00:28]} 75. Kb4 {[%emt 0:00:31]} Nxd4 {[%emt 0:00:23]} 76. Nc3+ {[%emt 0:00:20]} Kxe5 {[%emt 0:00:29]} 77. Kxa4 {[%emt 0:00:43]} Kd6 {[%emt 0:00:34]} 78. Kb4 {[%emt 0:01:05]} Kc6 {[%emt 0:00:24]} 79. a4 {[%emt 0:00:29]} (79. Nd1 $142 Kb6 80. Nf2) 79... Nc2+ {[%emt 0:00:19]} 80. Ka5 {[%emt 0:00:24]} e5 {[%emt 0:00:58]} 81. Ka6 {[%emt 0:00:31]} d4 {[%emt 0:00:31]} 82. Ne4 {[%emt 0:00:28]} Nb4+ {[%emt 0:00:31]} 83. Ka7 $1 {[%emt 0:00:22]} Kd5 {[%emt 0:00:30]} 84. Nf6+ {[%emt 0:00:25]} Kc6 $2 {[%emt 0:00:27]} (84... Ke6 $19 85. Nh7 Kf5) 85. Ne4 {[%emt 0:00:25]} d3 {[%emt 0:00:35]} 86. a5 {[%emt 0:00:44]} Kb5 {[%emt 0:00:32]} 87. Nd6+ {[%emt 0:00:29]} Kxa5 {[%emt 0:00:29]} 88. Nxc4+ {[%emt 0:00:30]} Kb5 {[%emt 0:00:20]} 89. Ne3 {[%emt 0:00:33]} Kc5 {[%emt 0:00:37]} 90. b3 {[%emt 0:00:41]} d2 {[%emt 0:00:29]} 91. Nd1 {[%emt 0:00:14]} e4 {[%emt 0:00:26]} 92. Kb7 {[%emt 0:00:13]} Nc2 {[%emt 0:00:22]} 93. Nc3 {[%emt 0:01:04]} e3 {[%emt 0:00:42]} 94. Ka6 {[%emt 0:00:11]} Kd4 {[%emt 0:00:33]} 95. Nd1 {[%emt 0:00:09]} e2 {[%emt 0:00:13]} 0-1